bitfinex-derivatives/quotes_SOLF0:USTF0_20241016
["timestamp","ask_amount","ask_price","bid_price","bid_amount"]
[1729045526418,8.91,155.21,155.16,2.7485]
[1729045526619,8.91,155.21,155.15,8.91]
[1729045526816,3.2218,155.2,155.17,3.2223]
[1729045527315,3.2218,155.2,155.16,3.2224]
[1729045530325,12.1316,155.21,155.18,3.2221]
[1729045530722,12.1316,155.21,155.15,8.91]
[1729045530921,12.1316,155.21,155.17,3.2223]
[1729045531624,3.2218,155.2,155.17,3.2223]
[1729045532018,8.91,155.21,155.15,8.91]
[1729045532214,3.222,155.19,155.16,3.2225]
[1729045533222,8.91,155.2,155.11,2.6811]
[1729045533527,8.91,155.2,155.13,8.91]
[1729045533528,12.1324,155.18,155.13,8.91]
[1729045534016,12.1324,155.18,155.15,3.2227]
[1729045539033,17.3919,155.2,155.16,3.2224]
[1729045544440,8.91,155.18,155.16,3.2224]
[1729045545638,8.91,155.18,155.13,8.91]
[1729045545939,8.91,155.17,155.11,2.6811]
[1729045546645,12.1325,155.17,155.13,3.2231]
[1729045547446,3.2222,155.18,155.14,3.2228]
[1729045547635,5.26,155.19,155.15,8.91]
[1729045547835,8.91,155.18,155.13,8.91]
[1729045548036,8.91,155.18,155.15,3.2227]
[1729045549032,8.91,155.18,155.16,3.2226]
[1729045551545,8.91,155.18,155.13,8.91]
[1729045551842,12.1323,155.18,155.13,8.91]
[1729045552162,14.17,155.2,155.18,3.2221]
[1729045552347,14.17,155.2,155.14,8.91]
[1729045552744,14.17,155.2,155.17,3.2223]
[1729045553433,14.17,155.21,155.16,8.91]
[1729045553659,1.3849,155.24,155.17,8.91]
[1729045553660,5.26,155.22,155.17,8.91]
[1729045553947,8.91,155.21,155.15,8.91]
[1729045554446,12.1316,155.21,155.17,3.2224]
[1729045555133,8.91,155.21,155.15,8.91]
[1729045555338,8.91,155.2,155.16,3.2225]
[1729045555542,12.1323,155.18,155.12,9.91]
[1729045555849,8.91,155.17,155.13,3.2231]
[1729045556049,12.1325,155.17,155.13,3.2231]
[1729045556838,8.91,155.17,155.12,9.91]
[1729045557454,3.2226,155.16,155.12,13.1334]
[1729045562047,3.2226,155.16,155.13,3.2232]
[1729045562647,5.26,155.18,155.12,9.91]
[1729045562950,8.91,155.17,155.13,8.91]
[1729045563548,8.4823,155.18,155.13,8.91]
[1729045563749,5.26,155.18,155.13,8.91]
[1729045563950,5.26,155.18,155.15,3.2227]
[1729045565354,12.1322,155.19,155.15,3.2227]
[1729045565556,17.3922,155.19,155.15,3.2227]
[1729045569555,14.15,155.19,155.15,3.2227]
[1729045569861,17.3721,155.19,155.15,3.2227]
[1729045570657,8.91,155.2,155.15,8.91]
[1729045570865,5.24,155.2,155.17,3.2222]
[1729045572362,12.1312,155.23,155.17,8.91]
[1729045572566,14.15,155.23,155.17,8.91]
[1729045572767,8.91,155.23,155.19,8.91]
[1729045573072,8.91,155.23,155.2,3.2216]
[1729045574264,4.6059,155.24,155.2,3.2216]
[1729045575170,1.3849,155.24,155.21,3.2214]
[1729045577379,72.8402,155.28,155.24,3.2207]
[1729045577676,14.15,155.27,155.22,8.91]
[1729045577871,8.91,155.27,155.22,8.91]
[1729045578377,8.91,155.27,155.21,8.91]
[1729045579176,8.91,155.27,155.21,12.1315]
[1729045579177,3.2208,155.25,155.21,12.1315]
[1729045579378,8.91,155.25,155.2,8.91]
[1729045579580,8.91,155.24,155.18,8.91]
[1729045580473,12.131,155.24,155.2,3.2217]
[1729045580868,8.91,155.24,155.18,8.91]
[1729045581075,12.131,155.24,155.2,3.2216]
[1729045582168,3.221,155.24,155.2,3.2216]
[1729045582574,3.221,155.24,155.2,12.1316]
[1729045583278,3.221,155.24,155.2,8.91]
[1729045583479,3.221,155.24,155.21,3.2215]
[1729045583669,8.91,155.25,155.2,8.91]
[1729045583874,3.2213,155.23,155.18,8.91]
[1729045584077,3.2213,155.23,155.19,3.2218]
[1729045584477,3.2213,155.23,155.17,2.6979]
[1729045584675,3.2213,155.23,155.19,3.2218]
[1729045584982,12.1317,155.21,155.15,8.91]
[1729045585179,12.1317,155.21,155.17,3.2223]
[1729045586085,12.1317,155.21,155.18,3.2221]
[1729045589685,8.91,155.21,155.15,8.91]
[1729045589887,8.91,155.19,155.17,3.2223]
[1729045590087,8.91,155.18,155.13,11.6737]
[1729045590294,5.24,155.19,155.13,11.6737]
[1729045590591,3.2225,155.17,155.14,3.223]
[1729045591383,3.2228,155.15,155.12,4.2233]
[1729045592586,12.1327,155.16,155.12,4.2233]
[1729045593993,12.1327,155.16,155.12,1.0]
[1729045593994,3.223,155.15,155.12,1.0]
[1729045595191,8.91,155.16,155.12,1.0]
[1729045595382,12.1327,155.16,155.12,4.2234]
[1729045596888,3.2229,155.15,155.12,1.0]
[1729045598496,3.2229,155.15,155.12,4.2234]
[1729045601203,12.1329,155.15,155.12,1.0]
[1729045602186,8.91,155.15,155.12,1.0]
[1729045602997,12.1329,155.15,155.12,1.0]
[1729045603701,8.91,155.13,155.12,1.0]
[1729045604800,8.91,155.14,155.12,1.0]
[1729045605497,12.133,155.14,155.12,1.0]
[1729045607791,8.53926489,155.15,155.08,1.0]
[1729045608001,8.91,155.09,154.95,1.0]
[1729045608209,8.91,155.09,154.97,3.20843379]
[1729045608210,8.91,155.01,154.97,3.20843379]
[1729045608398,8.91,155.01,154.95,4.20585389]
[1729045608597,8.91,155.01,154.96,3.2267]
[1729045608901,8.91,155.01,154.95,4.20585389]
[1729045609406,8.91,155.0,154.95,1.0]
[1729045609892,8.91,155.0,154.95,4.2268]
[1729045610099,8.91,155.0,154.95,1.0]
[1729045610300,8.91,155.01,154.96,8.91]
[1729045610494,14.15,155.02,154.97,3.2264]
[1729045610696,5.24,155.02,154.96,8.91]
[1729045610897,14.15,155.04,154.99,13.1359]
[1729045612000,8.91,155.04,154.99,9.91]
[1729045612202,8.91,155.06,155.01,3.2256]
[1729045612403,5.24,155.07,155.02,8.91]
[1729045613503,5.24,155.07,155.03,3.2252]
[1729045614105,8.464,155.1,155.02,13.93]
[1729045614608,3.2241,155.09,155.04,3.225]
[1729045615608,5.24,155.1,155.0,6.6807]
[1729045615909,3.2245,155.07,155.0,6.6807]
[1729045616803,3.2245,155.07,155.03,3.2252]
[1729045619007,3.2244,155.08,155.03,3.2253]
[1729045620513,1.3654,155.12,155.03,13.93]
[1729045620704,6.6054,155.12,155.07,3.2243]
[1729045621811,9.8289,155.12,155.07,3.2243]
[1729045622012,6.6054,155.12,155.06,3.2246]
[1729045622405,3.2238,155.11,155.06,3.2246]
[1729045624107,20.5354,155.12,155.04,1.4041]
[1729045624308,13.93,155.1,155.02,5.24]
[1729045624811,3.2246,155.07,155.03,3.2251]
[1729045625016,19.17,155.08,155.0,2.7665]
[1729045625214,13.93,155.06,155.0,2.7665]
[1729045626513,13.93,155.06,155.0,1.3258]
[1729045626715,13.93,155.06,154.99,1.0]
[1729045627412,3.2251,155.04,155.0,3.2258]
[1729045628121,3.2254,155.03,154.99,4.2261]
[1729045630620,17.1551,155.04,155.0,3.2259]
[1729045630817,13.93,155.04,155.0,3.2259]
[1729045631016,13.93,155.04,154.99,1.0]
[1729045632523,3.2253,155.03,154.99,4.2261]
[1729045633312,9.8459,155.05,154.99,1.0]
[1729045633513,6.6208,155.05,154.99,1.0]
[1729045634020,9.8458,155.05,155.01,3.2256]
[1729045634229,9.8458,155.05,154.99,1.0]
[1729045634526,5.24,155.05,155.02,3.2255]
[1729045635234,5.24,155.05,154.99,1.0]
[1729045635418,8.4649,155.05,155.01,3.2256]
[1729045642965,8.4649,155.05,155.02,3.2255]
[1729045644676,13.93,155.04,154.99,1.0]
[1729045645260,3.2257,155.02,154.99,1.0]
[1729045647069,13.93,155.04,154.99,1.0]
[1729045647278,13.93,155.02,154.99,1.0]
[1729045648117,5.24,155.01,154.99,1.0]
[1729045648377,3.2259,155.0,154.99,1.0]
[1729045651873,12.1559,155.0,154.99,1.0]
[1729045652579,12.1559,155.0,154.99,0.5261]
[1729045653164,12.1559,155.0,154.95,4.2269]
[1729045653165,8.93,155.0,154.95,4.2269]
[1729045653370,5.24,155.01,154.95,4.2269]
[1729045653371,8.93,154.97,154.95,4.2269]
[1729045653609,8.93,154.96,154.95,1.0]
[1729045655445,12.1568,154.96,154.95,1.0]
[1729045657459,17.3966,154.97,154.95,1.0]
[1729045659456,5.24,154.97,154.95,1.0]
[1729045660450,5.24,154.97,154.95,4.2268]
[1729045660863,5.24,154.97,154.95,1.0]
[1729045662258,13.95,155.01,154.95,1.0]
[1729045662563,8.4657,155.01,154.95,1.0]
[1729045662958,4.5851,155.03,154.99,3.226]
[1729045663157,9.8251,155.03,154.99,3.226]
[1729045665065,13.95,155.06,154.95,20.19]
[1729045665266,5.24,155.06,154.98,13.95]
[1729045665564,3.26417045,155.05,154.98,13.95]
[1729045665863,5.24,155.06,154.98,13.95]
[1729045666060,5.24,155.06,155.0,13.95]
[1729045666665,1.3404,155.09,155.0,15.3834]
[1729045666962,6.5804,155.09,155.02,13.95]
[1729045667262,5.24,155.1,155.02,13.95]
[1729045667662,5.24,155.11,155.02,13.95]
[1729045668467,13.95,155.1,155.01,1.3763]
[1729045669369,5.24,155.11,155.02,13.95]
[1729045669565,18.56968155,155.13,155.04,13.95]
[1729045669566,15.3056,155.13,155.04,13.95]
[1729045669764,5.24,155.12,155.04,13.95]
[1729045670168,20.5256,155.13,155.04,13.95]
[1729045670364,6.5756,155.13,155.04,13.95]
[1729045670876,8.4434,155.13,155.1,3.2238]
[1729045671071,5.22,155.15,155.06,13.95]
[1729045671368,5.22,155.15,155.08,13.95]
[1729045671563,8.4428,155.15,155.11,3.2236]
[1729045672659,19.17,155.15,155.07,6.6563]
[1729045672859,19.17,155.15,155.04,5.22]
[1729045672860,13.95,155.13,155.04,5.22]
[1729045673773,3.2238,155.11,155.06,3.2245]
[1729045674073,3.2238,155.11,155.04,5.22]
[1729045675171,3.2238,155.11,155.06,3.2246]
[1729045675557,3.2238,155.1,155.03,6.5744]
[1729045675763,13.95,155.13,155.05,3.2247]
[1729045675961,2.7317,155.14,155.03,6.5744]
[1729045676161,2.7317,155.14,155.03,1.3544]
[1729045676162,3.2244,155.08,155.03,1.3544]
[1729045676362,19.17,155.1,155.03,4.5796]
[1729045676570,13.95,155.08,155.03,4.5796]
[1729045676770,3.2246,155.07,155.03,4.5796]
[1729045676970,13.95,155.08,155.03,3.2252]
[1729045677563,3.2247,155.06,155.02,3.2254]
[1729045677871,13.95,155.08,155.01,1.3763]
[1729045678060,3.2247,155.06,155.03,3.2251]
[1729045678267,3.2247,155.06,155.01,1.3763]
[1729045678678,3.2247,155.06,155.02,3.2254]
[1729045681775,18.5578,155.08,155.03,3.2252]
[1729045682767,19.17,155.1,155.02,13.95]
[1729045683070,5.22,155.1,155.03,5.22]
[1729045683269,5.22,155.1,155.03,6.5472]
[1729045683868,5.22,155.1,155.07,3.2244]
[1729045684374,8.4439,155.1,155.07,3.2244]
[1729045685769,5.22,155.1,155.07,3.2244]
[1729045686572,15.2654,155.13,155.04,13.95]
[1729045686573,6.5354,155.13,155.04,13.95]
[1729045686775,5.22,155.15,155.1,3.2238]
[1729045687274,5.22,155.15,155.06,13.95]
[1729045687872,3.2232,155.14,155.08,3.2241]
[1729045688072,3.2232,155.14,155.06,13.95]
[1729045688873,3.2232,155.14,155.09,3.2239]
[1729045689672,13.95,155.14,155.04,13.95]
[1729045689879,13.95,155.12,155.06,3.2246]
[1729045690370,13.95,155.12,155.04,5.22]
[1729045690371,5.22,155.11,155.04,3.2249]
[1729045690573,5.22,155.11,155.03,1.3272]
[1729045691370,5.22,155.11,155.05,3.2248]
[1729045691879,3.2243,155.08,155.04,3.2251]
[1729045692766,3.2245,155.07,155.03,4.5523]
[1729045692971,3.2245,155.07,155.0,19.17]
[1729045693371,3.2245,155.07,155.0,13.95]
[1729045694171,13.95,155.1,155.0,13.95]
[1729045694478,3.2243,155.08,155.0,13.95]
[1729045694779,3.2248,155.06,155.02,3.2255]
[1729045695674,3.2248,155.06,155.03,3.2253]
[1729045696581,3.2248,155.06,154.99,9.3936]
[1729045696582,3.2248,155.06,155.02,3.2255]
[1729045697374,5.22,155.07,155.02,3.2255]
[1729045697680,3.2249,155.05,155.02,3.2255]
[1729045699082,3.2249,155.05,154.99,9.3936]
[1729045699277,3.2252,155.04,155.01,3.2257]
[1729045700185,6.6525,155.07,155.01,3.2257]
[1729045700380,3.2252,155.04,155.0,3.2258]
[1729045700583,13.95,155.06,154.99,1.3952]
[1729045700784,6.6525,155.07,154.96,5.22]
[1729045700785,13.95,155.04,154.96,5.22]
[1729045701376,3.2256,155.02,154.99,3.2261]
[1729045703580,17.1747,155.06,154.97,3.16747337]
[1729045703889,13.95,155.06,154.96,13.95]
[1729045704287,3.2251,155.04,155.0,3.2258]
[1729045704992,3.2251,155.04,154.99,3.2261]
[1729045705291,3.2251,155.04,154.97,3.15972894]
[1729045705487,3.2251,155.04,155.0,3.2257]
[1729045706088,3.2249,155.05,155.02,3.2255]
[1729045707292,22.3948,155.06,155.03,3.2253]
[1729045708203,3.225,155.05,154.99,3.2261]
[1729045708397,3.225,155.05,154.96,13.95]
[1729045708793,3.225,155.05,154.97,3.29440529]
[1729045708994,3.225,155.05,155.01,3.2256]
[1729045709694,1.4325,155.07,154.98,13.95]
[1729045709899,13.95,155.1,155.0,13.95]
[1729045710112,5.22,155.09,155.02,13.95]
[1729045710600,8.4441,155.09,155.02,13.95]
[1729045710908,8.4441,155.09,155.05,3.2247]
[1729045711710,5.22,155.09,155.07,3.2244]
[1729045712606,5.22,155.09,155.06,3.2245]
[1729045712907,3.2239,155.1,155.06,3.2245]
[1729045713207,6.6464,155.14,155.06,13.95]
[1729045713403,5.22,155.14,155.11,3.2236]
[1729045713711,5.22,155.14,155.07,6.594]
[1729045713907,3.2229,155.15,155.11,3.2234]
[1729045717615,8.40947164,155.17,155.08,13.95]
[1729045717818,3.2226,155.16,155.08,13.95]
[1729045718712,3.2226,155.16,155.11,3.2235]
[1729045719219,3.2229,155.15,155.11,3.2235]
[1729045722617,13.95,155.18,155.08,13.95]
[1729045722814,3.2226,155.16,155.08,13.95]
[1729045723004,3.2226,155.16,155.08,15.3485]
[1729045724242,5.22,155.17,155.08,15.3485]
[1729045724243,3.2225,155.17,155.13,3.223]
[1729045724515,3.2225,155.17,155.1,13.95]
[1729045724716,3.2225,155.17,155.13,3.2231]
[1729045725020,3.2226,155.16,155.13,3.2231]
[1729045726213,3.2225,155.17,155.13,3.2231]
[1729045726615,19.17,155.18,155.09,4.54325329]
[1729045726808,19.17,155.18,155.12,3.2234]
[1729045727019,19.17,155.18,155.09,4.54325329]
[1729045728122,3.2227,155.16,155.13,3.2231]
[1729045728919,19.17,155.18,155.13,3.2231]
[1729045729122,3.2225,155.17,155.13,3.2231]
[1729045733725,3.2226,155.16,155.13,3.2231]
[1729045734223,3.2226,155.16,155.12,8.92]
[1729045735021,14.14,155.18,155.12,8.92]
[1729045735230,8.4419,155.2,155.16,3.2224]
[1729045735928,14.14,155.2,155.11,5.22]
[1729045736119,8.92,155.17,155.14,3.223]
[1729045737221,12.1424,155.17,155.14,3.223]
[1729045737821,12.1424,155.17,155.12,8.92]
[1729045737822,8.92,155.17,155.09,3.16985329]
[1729045738025,8.92,155.17,155.12,3.2233]
[1729045738026,3.2229,155.15,155.12,3.2233]
[1729045744827,1.333,155.21,155.14,8.92]
[1729045745138,15.473,155.21,155.16,8.92]
[1729045745834,3.2221,155.19,155.16,8.92]
[1729045746028,3.2221,155.19,155.15,3.2227]
[1729045749233,8.92,155.18,155.15,3.2227]
[1729045750146,8.92,155.17,155.08,1.3985]
[1729045750346,8.92,155.15,155.09,8.92]
[1729045750730,12.1429,155.15,155.11,3.2235]
[1729045752033,8.92,155.15,155.09,8.92]
[1729045752232,8.92,155.18,155.12,8.92]
[1729045752433,14.12,155.19,155.14,8.92]
[1729045753539,3.2222,155.18,155.15,3.2228]
[1729045757836,12.1422,155.18,155.15,3.2228]
[1729045758241,12.1426,155.16,155.13,3.2231]
[1729045758437,12.1426,155.16,155.11,8.92]
[1729045759544,12.1426,155.16,155.13,3.2232]
[1729045761944,12.1425,155.17,155.13,3.2232]
[1729045763853,12.1425,155.17,155.11,8.92]
[1729045763854,3.2227,155.16,155.12,3.2233]
[1729045764752,8.92,155.17,155.12,3.2233]
[1729045764952,3.2228,155.15,155.12,3.2233]
[1729045765449,12.1428,155.15,155.12,3.2233]
[1729045766256,8.92,155.15,155.09,8.92]
[1729045766552,3.2232,155.14,155.11,3.2236]
[1729045768850,3.2239,155.1,155.07,3.2243]
[1729045769057,8.92,155.1,155.07,3.2243]
[1729045769956,12.144,155.1,155.06,3.2245]
[1729045770357,3.2244,155.08,155.04,3.2249]
[1729045771053,3.2244,155.08,155.02,16.9339]
[1729045771255,3.2244,155.08,155.05,3.2247]
[1729045771554,3.2243,155.08,155.02,16.9339]
[1729045771956,3.2243,155.08,155.04,3.2249]
[1729045772160,12.1445,155.07,155.04,3.2249]
[1729045772762,3.2247,155.06,155.03,3.2253]
[1729045773160,12.1447,155.06,155.03,3.2253]
[1729045773363,8.92,155.06,155.03,3.2253]
[1729045774360,12.1445,155.07,155.02,1.4425]
[1729045774559,12.1445,155.07,155.04,3.225]
[1729045781463,8.92,155.06,155.04,3.225]
[1729045785268,5.2,155.1,155.02,1.4425]
[1729045785464,12.145,155.05,155.02,3.2254]
[1729045785666,8.92,155.03,154.99,8.92]
[1729045785966,8.92,155.03,155.01,3.2255]
[1729045788768,8.92,155.02,154.87,12.914]
[1729045788970,8.92,155.01,154.99,3.2261]
[1729045790373,8.92,155.01,154.95,15.12]
[1729045790571,8.92,155.01,154.98,3.2263]
[1729045791076,12.1457,155.01,154.98,3.2263]
[1729045792371,8.92,154.99,154.96,3.2266]
[1729045792569,8.92,154.97,154.96,3.2266]
[1729045792776,8.92,154.99,154.95,1.0]
[1729045793073,5.2,155.01,154.95,9.92]
[1729045793475,5.2,155.01,154.98,3.2262]
[1729045795873,8.92,155.0,154.98,3.2262]
[1729045796572,5.2,155.01,154.98,3.2262]
[1729045796778,8.92,155.0,154.98,3.2262]
[1729045799781,8.92,154.99,154.98,3.2262]
[1729045800381,3.2268,154.96,154.82,1.0]
[1729045800580,5.2,154.95,154.83,4.1853]
[1729045800775,8.92,154.91,154.83,4.1853]
[1729045800982,5.2,154.94,154.82,1.0]
[1729045800983,8.92,154.87,154.82,1.0]
[1729045801180,5.2,154.88,154.82,1.0]
[1729045801380,5.2,154.89,154.82,9.92]
[1729045801682,8.92,154.87,154.82,1.0]
[1729045802179,8.4284,154.89,154.84,3.2291]
[1729045802384,8.92,154.86,154.84,3.2291]
[1729045807887,8.92,154.85,154.82,1.0]
[1729045808078,8.92,154.85,154.83,3.2294]
[1729045808481,8.92,154.85,154.82,1.0]
[1729045808987,8.92,154.88,154.83,8.92]
[1729045809689,8.92,154.88,154.86,3.2286]
[1729045810685,1.4411,154.94,154.84,8.92]
[1729045810881,8.92,154.91,154.86,8.92]
[1729045812493,8.92,154.91,154.88,3.2282]
[1729045814282,8.92,154.91,154.86,8.92]
[1729045814485,6.6411,154.94,154.85,7.9655]
[1729045814486,8.92,154.92,154.87,8.92]
[1729045814885,8.92,154.92,154.9,3.228]
[1729045815483,8.92,154.91,154.88,3.2283]
[1729045818793,8.92,154.9,154.88,3.2283]
[1729045820189,12.1481,154.9,154.87,3.2286]
[1729045820894,8.92,154.9,154.87,3.2286]
[1729045821491,6.6267,154.95,154.85,2.7655]
[1729045821797,6.6267,154.95,154.91,3.2277]
[1729045821798,3.2272,154.94,154.91,3.2277]
[1729045821998,8.92,154.92,154.86,8.92]
[1729045822296,8.92,154.91,154.86,8.92]
[1729045822598,8.92,154.91,154.9,3.228]
[1729045823694,8.92,154.91,154.88,3.2282]
[1729045823890,8.92,154.91,154.85,11.6855]
[1729045824481,8.92,154.89,154.88,3.2282]
[1729045826893,6.6267,154.95,154.86,8.92]
[1729045827094,8.92,154.91,154.9,3.2278]
[1729045827297,8.92,154.91,154.84,5.2]
[1729045827599,8.92,154.89,154.86,3.2287]
[1729045827998,8.92,154.88,154.82,1.0]
[1729045828315,8.92,154.84,154.82,1.0]
[1729045828707,8.92,154.84,154.82,4.2295]
[1729045829007,8.92,154.84,154.82,1.0]
[1729045829316,8.92,154.83,154.82,1.0]
[1729045829513,12.1495,154.83,154.82,1.0]
[1729045830629,1.3486,154.89,154.82,1.0]
[1729045830926,1.3486,154.89,154.85,3.2289]
[1729045830927,8.92,154.88,154.85,3.2289]
[1729045831225,8.92,154.88,154.82,6.2]
[1729045831422,8.92,154.88,154.84,3.2292]
[1729045831823,3.2286,154.88,154.84,3.2292]
[1729045832731,13.95,154.85,154.82,1.0]
[1729045833026,13.95,154.88,154.82,1.0]
[1729045833226,3.2288,154.87,154.83,3.2294]
[1729045835811,4.577,154.89,154.85,3.2289]
[1729045836006,18.527,154.89,154.82,1.0]
[1729045836207,13.95,154.89,154.82,1.0]
[1729045836904,13.95,154.89,154.86,3.2288]
[1729045838422,17.1782,154.89,154.86,3.2288]
[1729045842811,13.95,154.89,154.82,1.0]
[1729045845513,13.95,154.89,154.88,3.2284]
[1729045845904,17.178,154.91,154.88,3.2284]
[1729045848214,13.95,154.91,154.89,3.2281]
[1729045848522,13.95,154.91,154.85,1.3724]
[1729045848523,2.8276,154.95,154.86,3.22030614]
[1729045848716,15.3417,154.95,154.85,1.3724]
[1729045848917,18.5687,154.95,154.91,3.2276]
[1729045849307,18.5687,154.95,154.88,8.35668798]
[1729045849617,18.5687,154.95,154.91,3.2277]
[1729045850418,3.2272,154.94,154.91,3.2277]
[1729045850618,13.95,154.96,154.88,8.35668798]
[1729045850914,13.95,154.98,154.88,22.30668798]
[1729045851315,17.1769,154.96,154.92,3.2274]
[1729045851914,17.1769,154.96,154.93,3.2274]
[1729045853813,8.93,154.94,154.93,3.2274]
[1729045855021,8.93,154.94,154.92,3.2275]
[1729045855319,8.93,154.93,154.92,3.2275]
[1729045855721,8.93,154.94,154.93,3.2274]
[1729045857519,8.93,154.94,154.92,3.2275]
[1729045857815,12.1564,154.98,154.92,5.2]
[1729045858017,12.1564,154.98,154.94,3.227]
[1729045858321,12.1564,154.98,154.93,8.93]
[1729045859611,12.1564,154.98,154.95,3.2269]
[1729045861523,3.226,155.0,154.97,3.2265]
[1729045861723,8.93,154.98,154.93,1.3258]
[1729045861919,8.93,154.98,154.92,5.2]
[1729045861920,8.93,154.95,154.92,5.2]
[1729045862116,8.93,154.94,154.92,3.2274]
[1729045865822,17.1868,154.96,154.92,3.2274]
[1729045866223,17.1868,154.96,154.93,3.2272]
[1729045867826,3.2271,154.95,154.92,3.2275]
[1729045869236,3.2277,154.92,154.85,5.2]
[1729045869530,13.96,154.9,154.85,5.2]
[1729045869828,13.96,154.9,154.88,3.2284]
[1729045870329,13.96,154.9,154.85,5.2]
[1729045870529,17.188,154.9,154.87,3.2286]
[1729045873823,17.188,154.9,154.86,3.2287]
[1729045876533,13.96,154.9,154.83,6.5756]
[1729045876725,13.96,154.9,154.83,1.3756]
[1729045876927,3.2286,154.88,154.85,3.229]
[1729045877827,3.2283,154.89,154.85,3.229]
[1729045878432,3.2285,154.88,154.85,3.229]
[1729045880135,3.2285,154.88,154.84,3.2292]
[1729045880341,13.96,154.88,154.84,3.2292]
[1729045881055,3.2286,154.87,154.84,3.2292]
[1729045881228,13.96,154.88,154.84,3.2292]
[1729045881842,17.1886,154.88,154.84,3.2292]
[1729045882243,13.96,154.88,154.82,1.0]
[1729045882445,17.1892,154.85,154.82,1.0]
[1729045884041,1.393,154.87,154.82,1.0]
[1729045884838,1.393,154.87,154.83,3.2294]
[1729045884839,3.2289,154.86,154.83,3.2294]
[1729045886051,12.1588,154.86,154.83,3.2294]
[1729045888355,8.93,154.85,154.83,3.2294]
[1729045888658,8.93,154.85,154.82,1.0]
[1729045888955,12.1591,154.85,154.82,4.2296]
[1729045894648,8.93,154.83,154.82,4.2296]
[1729045897651,8.93,154.83,154.82,1.0]
[1729045901378,8.93,154.83,154.77,1.0]
[1729045901379,15.439,154.83,154.77,1.0]
[1729045901574,15.439,154.83,154.68,8.93]
[1729045901575,8.93,154.78,154.68,8.93]
[1729045901778,8.93,154.74,154.7,3.1980876]
[1729045902571,3.2309,154.77,154.7,12.1280876]
[1729045902768,8.93,154.75,154.7,12.1280876]
[1729045903258,8.93,154.75,154.7,3.1980876]
[1729045903449,8.93,154.74,154.72,3.2316]
[1729045905152,5.2,154.79,154.74,3.2313]
[1729045905355,8.93,154.77,154.73,9.93]
[1729045905566,8.93,154.79,154.73,9.93]
[1729045905758,8.93,154.79,154.76,3.2308]
[1729045906350,8.93,154.79,154.77,3.2306]
[1729045906552,8.93,154.79,154.74,8.93]
[1729045906753,8.93,154.79,154.74,10.2564]
[1729045906954,8.93,154.79,154.76,3.2308]
[1729045907862,5.18,154.81,154.74,1.3264]